Cogmind - Beta 15 @@@ ROGUE MODE // 2025.07.30 @ 17:10:03 Player: LameThyst Result: Destroyed by G-47 Trooper with Particle Gun Performance ------------- Evolutions (2) 1000 Regions Visited (5) 1000 Robots Destroyed (63) 315 Value Destroyed (1839) 1839 Prototype IDs (29) 580 Alien Tech Used (0) 0 Bonus (25) 25 TOTAL SCORE: 4759 Bonus ------- Follower Combat Kills 25 Cogmind --------- Core Integrity 0/550 Matter 248/300 Energy 90/150 System Corruption 1% Temperature Cool (57) Movement Walking (260) Ox2 Location -8/Materials Parts ------- > --- POWER (1) -------- Light Angular Momentum Engine > --- PROPULSION (4) --- Aluminum Leg > --- UTILITY (4) ------ Medium Storage Unit Advanced Visual Processing Unit Advanced Targeting Computer > --- WEAPON (2) ------- Heavy Particle Gun Shock Bomb Launcher > --- INVENTORY (10) --- Light Deuterium Engine Improved Heat Sink Structural Scanner Signal Interpreter Hacking Suite Trap Reconfigurator Heavy Laser Great Maul Peak State ------------ > --- POWER ------------ Improved Ion Engine > --- PROPULSION ------- Aluminum Leg Aluminum Leg Aluminum Leg Aluminum Leg > --- UTILITY ---------- Medium Storage Unit Experimental Sensor Array Seismic Detector Makeshift Hacking Suite > --- WEAPON ----------- Minigun Minigun > --- INVENTORY -------- Improved Ion Engine Signal Interpreter Hardened Medium Armor Plating Hardened Medium Armor Plating Improved Light Armor Plating Hacking Suite Trap Reconfigurator Grenade Launcher Maul [Rating: 29] Favorites ----------- Power Ion Engine Engine Ion Engine Propulsion Aluminum Leg Leg Aluminum Leg Hover Unit Hover Unit Utility Medium Storage Unit Device Seismic Detector Storage Medium Storage Unit Processor Advanced Targeting Computer Hackware Makeshift Hacking Suite Protection Hardened Medium Armor Plating Weapon Assault Rifle Energy Gun Medium Laser Ballistic Gun Assault Rifle Launcher Grenade Launcher Special Weapon Mining Laser Impact Weapon Maul Build | -11 -10 -10 -10 -9 -8 ------- Run | Yrd Mat Min Exi Min Mat Slots Evolved 4 | . . . . . 4 Power . | . . . . . . Propulsion 2 | . . . . . 2 Utility 2 | . . . . . 2 Weapon . | . . . . . . Parts Attached 70 | 7 8 4 2 12 37 Power 9 | 1 1 1 . 2 4 Engine 9 | 1 1 1 . 2 4 Core . | . . . . . . Reactor . | . . . . . . Propulsion 21 | 2 1 1 2 5 10 Treads . | . . . . . . Leg 19 | 2 1 1 . 5 10 Wheel . | . . . . . . Hover 2 | . . . 2 . . Flight . | . . . . . . Utility 19 | 2 2 2 . 2 11 Device 4 | 1 1 1 . 1 . Storage 2 | 1 1 . . . . Processor 3 | . . . . . 3 Hackware 1 | . . . . . 1 Protection 9 | . . 1 . 1 7 Artifact . | . . . . . . Weapon 21 | 2 4 . . 3 12 Energy Gun 7 | 1 2 . . . 4 Energy Cannon . | . . . . . . Ballistic Gun 7 | 1 . . . 3 3 Ballistic Cannon . | . . . . . . Launcher 4 | . 1 . . . 3 Special Weapon 1 | . 1 . . . . Impact Weapon 2 | . . . . . 2 Slashing Weapon . | . . . . . . Piercing Weapon . | . . . . . . Special Melee Weapon . | . . . . . . Unidentified Prototypes 1 | . . 1 . . . Parts Lost 23 | . . . . 1 22 Power 2 | . . . . . 2 Propulsion 9 | . . . . 1 8 Utility 7 | . . . . . 7 Weapon 5 | . . . . . 5 Highest Loss Streak 5 | . . . . 1 5 To Critical Strikes . | . . . . . . Average Backups 8 | 3 7 10 9 9 8 Power . | . 1 1 1 . . Propulsion 1 | . . 3 1 1 . Utility 4 | . 3 4 4 5 5 Weapon 2 | 1 2 2 2 2 2 Tool/Special . | . . . . . . Unused Backups 12 | 1 4 1 . 1 5 Power . | . . . . . . Propulsion 2 | . 1 . . 1 . Utility 6 | . 1 1 . . 4 Weapon 4 | 1 2 . . . 1 Tool/Special . | . . . . . . Average Slot Usage (%) 97 | . 100 100 99 99 92 Engine 12 | . 14 14 14 14 8 Leg 25 | . 28 28 13 25 30 Hover 2 | . . . 14 2 . Device 11 | . 14 12 14 12 6 Storage 12 | . 14 14 14 14 9 Processor 2 | . . . . . 7 Hackware 1 | . . . . . 4 Protection 2 | . . 1 . 1 6 Energy Gun 7 | . 13 9 14 . 4 Ballistic Gun 14 | . 14 14 14 19 10 Launcher 2 | . . 4 . 8 . Peak Build Rating 29 | 7 8 16 17 20 29 Average Rating 15 | 5 7 10 16 17 22 On Entrance 11 | . 7 8 16 17 20 Naked Turns . | . . . . . . Heaviest Build 39 | 14 21 22 21 30 39 Greatest Support 40 | 20 20 20 20 20 40 Greatest Overweight (x) 7 | . 1 1 1 6 7 Average Overweight (x) . | . . . . 1 . Largest Inventory Capacity 10 | 8 10 10 10 10 10 Average Capacity 9 | 7 8 10 10 10 10 Most Carried 10 | 5 10 10 10 10 10 Average Carried 8 | 3 7 9 9 9 8 Final Capacity 10 | 8 10 10 10 10 10 Final Carried 10 | 5 10 10 9 10 8 Class Distribution -------------------- 54% | Mutant 44% | Scavenger-Mutant Dominant Class ---------------- Mutant | -10/Materials Mutant | -10/Mines Mutant | -10/Exiles Scavenger-Mutant | -9/Mines Scavenger-Mutant | -8/Materials Resources | -11 -10 -10 -10 -9 -8 ----------- Run | Yrd Mat Min Exi Min Mat Matter Collected 2162 | 336 235 168 43 292 1088 Remotely . | . . . . . . Salvage Created 2214 | 146 256 188 . 195 1429 Parts 123 | 17 25 5 . 8 68 Haulers Intercepted 3 | . 2 . . . 1 Recyclers Shooed 7 | . . . . 1 6 Parts Field Recycled . | . . . . . . Retrieved Matter . | . . . . . . Parts Self-Destructed . | . . . . . . Prevented . | . . . . . . Kills | -11 -10 -10 -10 -9 -8 ------- Run | Yrd Mat Min Exi Min Mat Combat Hostiles Destroyed 47 | . 9 6 . 6 26 Melee 1 | . . . . . 1 Guns 34 | . 6 4 . 4 20 AOE 11 | . 3 2 . 2 4 Classes Destroyed 12 | 3 3 1 . 2 3 Worker 2 | 1 . . . . 1 Builder 3 | . . . . . 3 Tunneler 5 | 5 . . . . . Hauler 3 | . 2 . . . 1 Recycler 2 | 1 . . . . 1 Watcher 3 | . 2 . . . 1 Swarmer 10 | . 9 1 . . . Grunt 26 | . . 5 . 2 19 Brawler 1 | . . . . . 1 Sentry 7 | . . . . 2 5 Hunter 1 | . . . . . 1 Assembled 2 | . . . . 2 . Best Kill Streak 6 | 2 4 3 . 2 6 Combat Bots Only 4 | . 3 3 . 2 4 Max Kills in Single Turn 4 | 1 3 1 . 1 4 Gunslinging 1 | . 1 . . . . Exploded 3 | . 3 1 . 1 3 Melee 1 | . . . . . 1 Uniques/NPCs Destroyed . | . . . . . . Combat | -11 -10 -10 -10 -9 -8 -------- Run | Yrd Mat Min Exi Min Mat Hostile Shots Fired 315 | . 25 22 . 30 238 Missed 80 | . 10 6 . 7 57 Hits 235 | . 15 16 . 23 181 Melee 5 | . . . . . 5 Projectile 230 | . 15 16 . 23 176 AOE 1 | . . . . . 1 Critical Strikes 9 | . . . . 1 8 Damage Taken 3949 | . 117 218 . 401 3213 Core 693 | . 28 32 . 79 554 Absorbed by Shields . | . . . . . . Core Remaining (%) 72 | 100 . . . 44 . Volleys Fired 188 | 22 22 16 . 20 108 Largest 2 | 2 2 2 . 2 2 Hottest 110 | 60 100 70 . 78 110 Shots Fired 348 | 44 42 25 . 27 210 Gun 333 | 44 40 21 . 23 205 Cannon . | . . . . . . Launcher 14 | . 1 4 . 4 5 Special 1 | . 1 . . . . Kinetic 202 | 22 20 12 . 16 132 Thermal 132 | 22 21 9 . 7 73 Explosive 12 | . 1 4 . 4 3 Electromagnetic 2 | . . . . . 2 Robot Hit Streak 20 | 10 8 8 . 13 20 Robot Miss Streak 5 | 5 4 2 . 4 3 Penetration Max . | . . . . . . Secondary Targets 10 | . 3 . . . 7 Max Gunslinging Chain 1 | . 1 . . . 1 Shots Hit Robots 257 | 30 24 19 . 19 165 Core Hits 117 | 8 16 12 . 9 72 Critical Kills 1 | . . . . . 1 Critical Parts Destroyed 2 | 1 . . . . 1 Critical Strikes 8 | 1 1 2 . 1 3 Burn 4 | . 1 2 . . 1 Destroy 4 | 1 . . . 1 2 Melee Attacks 1 | . . . . . 1 Impact 1 | . . . . . 1 Slashing . | . . . . . . Piercing . | . . . . . . Sneak Attacks . | . . . . . . Combat Hostiles . | . . . . . . Follow-up Attacks . | . . . . . . Damage Inflicted 4722 | 348 438 416 . 383 3137 Guns 3827 | 348 310 197 . 289 2683 Cannons . | . . . . . . Explosions 840 | . 128 219 . 94 399 Melee . | . . . . . . Ramming 55 | . . . . . 55 Kinetic 2232 | 163 123 97 . 216 1633 Thermal 1595 | 185 187 100 . 73 1050 Explosive 762 | . 128 219 . 94 321 Electromagnetic 78 | . . . . . 78 Impact . | . . . . . . Slashing . | . . . . . . Piercing . | . . . . . . Highest Corruption 1 | . . . . . 1 Average Corruption 1 | . . . . . 1 Corruption Purged . | . . . . . . Corruption Blocked . | . . . . . . Effects 5 | . . . . . 5 Message Errors 1 | . . . . . 1 Matter Fused 2 | . . . . . 2 Alerts 1 | . . . . . 1 Weapon Failures 1 | . . . . . 1 Overload Shots . | . . . . . . Overflow Damage 2 | . . . . . 2 Projectiles . | . . . . . . Explosions 2 | . . . . . 2 Melee . | . . . . . . Knockbacks . | . . . . . . Impact . | . . . . . . Kinetic . | . . . . . . Secondary . | . . . . . . Self-Inflicted Damage 156 | . . . . 81 75 Shots 6 | . . . . 3 3 Rammed . | . . . . . . Targets Rammed 20 | . . . . . 20 Kicked 20 | . . . . . 20 Crushed . | . . . . . . Highest Temperature 594 | . 45 225 . 11 594 Average Temperature 122 | . 14 117 . 2 143 Received Heat Transfer 1727 | . . 111 . 173 1443 Effects 16 | . . . . . 16 Shutdowns 3 | . . . . . 3 Energy Bleed 3 | . . . . . 3 Matter Decay 2 | . . . . . 2 Short Circuit 1 | . . . . . 1 Damage (minor) 1 | . . . . . 1 Damage (major) 4 | . . . . . 4 Damage (core) 2 | . . . . . 2 Siege Activations . | . . . . . . Martial Activations . | . . . . . . Shielding Activations . | . . . . . . Robots Disrupted . | . . . . . . Combat Hostiles . | . . . . . . Robots Corrupted . | . . . . . . Combat Hostiles . | . . . . . . Parts Fried . | . . . . . . Impact Corruptions . | . . . . . . Robots Melted 1 | . . . . . 1 Combat Hostiles 1 | . . . . . 1 Parts Melted 4 | . 1 1 . 1 1 Heat Transferred 3940 | 425 629 444 . 222 2220 Parts Sabotaged . | . . . . . . Parts Stolen . | . . . . . . Parts Stripped . | . . . . . . Power Chain Reactions . | . . . . . . Alert | -11 -10 -10 -10 -9 -8 ------- Run | Yrd Mat Min Exi Min Mat Maximum Alert Level 1 | . . . . . 1 Low Security (%) 98 | 100 100 100 . 100 96 Level 1 1 | . . . . . 3 Level 2 . | . . . . . . Level 3 . | . . . . . . Level 4 . | . . . . . . Level 5 . | . . . . . . High Security . | . . . . . . Max Security . | . . . . . . Peak Influence 230 | 5 140 115 . 40 230 Initial 3 | . . 3 . . . Average 33 | . 36 36 . 4 59 Influence Increases 1462 | 35 279 209 . 138 801 Destroy 0b10 Robot/C 920 | . 180 120 . 100 520 Destroy 0b10 Robot/NC 90 | 35 20 . . . 35 Destroy Leader 212 | . 38 30 . 10 134 Allied During Kill 4 | . . 2 . 2 . Successful Hack 38 | . 21 7 . . 10 Disable Machine 45 | . 15 . . . 30 Destroy Structure 63 | . 5 20 . 26 12 Lose Combat Pursuer 90 | . . 30 . . 60 Influence Decreases 1279 | 35 269 144 75 138 618 Entered New Map 82 | . . 7 75 . . Time Decay 882 | 35 269 137 . 116 325 Lost Part 200 | . . . . . 200 Lost Ally 22 | . . . . 22 . Purge Threat 93 | . . . . . 93 Squads Dispatched 6 | . . . . . 6 Investigation . | . . . . . . Extermination . | . . . . . . Reinforcement 2 | . . . . . 2 Assault . | . . . . . . Garrison 4 | . . . . . 4 Intercept . | . . . . . . Searches Triggered . | . . . . . . Construction Impeded . | . . . . . . Haulers Reinforced . | . . . . . . Active Scanning Responses . | . . . . . . Cargo Convoy Interrupts . | . . . . . . Stealth | -11 -10 -10 -10 -9 -8 --------- Run | Yrd Mat Min Exi Min Mat Distress Signals 7 | . 1 . . 1 5 Communications Jammed . | . . . . . . Distress Signals . | . . . . . . Times Spotted 68 | . 17 8 . 7 36 Peak Tracking Total 6 | . 5 3 . 3 6 Tactical Retreats 5 | . . 1 . . 4 Traps | -11 -10 -10 -10 -9 -8 ------- Run | Yrd Mat Min Exi Min Mat Traps Triggered 1 | . . . . . 1 Indirectly . | . . . . . . Trap Hack Attempts . | . . . . . . Triggered . | . . . . . . Disarmed . | . . . . . . Reprogrammed . | . . . . . . Reused . | . . . . . . Traps Extracted . | . . . . . . Installed . | . . . . . . Triggered . | . . . . . . Machines | -11 -10 -10 -10 -9 -8 ---------- Run | Yrd Mat Min Exi Min Mat Machines Disabled 3 | . 1 . . . 2 Max in Single Turn 1 | . 1 . . . 1 Garrison Access 1 | . . . . . 1 Machines Repaired . | . . . . . . Machines Dismantled . | . . . . . . Machines Sabotaged . | . . . . . . Overloaded Fab Kills . | . . . . . . Hacking | -11 -10 -10 -10 -9 -8 --------- Run | Yrd Mat Min Exi Min Mat Machines Accessed 16 | . 9 1 2 . 4 Terminals 11 | . 7 1 . . 3 Fabricators . | . . . . . . Repair Stations . | . . . . . . Recycling Units 2 | . 2 . . . . Scanalyzers . | . . . . . . Garrison Access 1 | . . . . . 1 Total Hacks 59 | . 33 5 7 . 14 Successful 32 | . 15 2 7 . 8 Failed 27 | . 18 3 . . 6 Catastrophic 2 | . . 1 . . 1 Database Lockouts . | . . . . . . Manual 34 | . 22 4 1 . 7 Terminals 43 | . 27 5 . . 11 Fabricators . | . . . . . . Repair Stations . | . . . . . . Recycling Units 6 | . 6 . . . . Scanalyzers . | . . . . . . Garrison Access 3 | . . . . . 3 Terminal Hacks 14 | . 3 2 7 . 2 Record 6 | . . . 6 . . Prototype ID Bank 2 | . 1 . . . 1 Branch Access Points 1 | . . 1 . . . Unreport Threat 1 | . . . . . 1 Locate Traps 2 | . 2 . . . . Zone Layout 1 | . . 1 . . . Proto ID Catalog 1 | . . . 1 . . Fabricator Hacks . | . . . . . . Repair Station Hacks . | . . . . . . Recycling Unit Hacks 2 | . 2 . . . . Retrieve Components 2 | . 2 . . . . Scanalyzer . | . . . . . . Garrison Access Hacks 1 | . . . . . 1 Seal Access 1 | . . . . . 1 Unauthorized Hacks 15 | . 10 . . . 5 Terminals 14 | . 9 . . . 5 Assimilate 1 | . 1 . . . . Botnet 4 | . 2 . . . 2 Operators 1 | . 1 . . . . Skim 8 | . 5 . . . 3 Fabricators . | . . . . . . Repair Stations . | . . . . . . Recycling Units 1 | . 1 . . . . Reject 1 | . 1 . . . . Scanalyzers . | . . . . . . Garrison Access . | . . . . . . Data Cores Recovered . | . . . . . . Used . | . . . . . . Hacking Detections 13 | . 9 . . . 4 Full Trace Events . | . . . . . . Feedback Events . | . . . . . . Feedback Blocked . | . . . . . . Robot Schematics Acquired . | . . . . . . Robots Built . | . . . . . . Authchips . | . . . . . . Time . | . . . . . . Total Robot Build Rating . | . . . . . . Part Schematics Acquired . | . . . . . . Parts Built . | . . . . . . Authchips . | . . . . . . Time . | . . . . . . Total Part Build Rating . | . . . . . . Parts Repaired . | . . . . . . Time . | . . . . . . Parts Recycled . | . . . . . . Recycled Matter . | . . . . . . Retrieved Matter . | . . . . . . Retrieved Components 16 | . 16 . . . . Parts Scanalyzed . | . . . . . . Part Schematics Acquired . | . . . . . . Parts Damaged . | . . . . . . Bothacking | -11 -10 -10 -10 -9 -8 ------------ Run | Yrd Mat Min Exi Min Mat Used RIF Installer . | . . . . . . Robots Hacked . | . . . . . . Non-combat . | . . . . . . Combat . | . . . . . . Robot Hacks Applied . | . . . . . . Relay Couplers Released . | . . . . . . Fabnet Peak Effective % . | . . . . . . Robots Rewired 3 | . . . 3 . . Allies Hacked . | . . . . . . Hacks Repelled . | . . . . . . Allies | -11 -10 -10 -10 -9 -8 -------- Run | Yrd Mat Min Exi Min Mat Total Allies 5 | . 1 1 3 . . Largest Group 4 | . 1 2 4 4 1 Highest-Rated Group 47 | . 10 41 47 47 10 Highest-Rated Ally 31 | . 10 31 21 21 10 Total Orders . | . . . . . . Ally Attacks 4 | . . . . 4 . Total Damage 68 | . . . . 68 . Kills 1 | . . . . 1 . Allies Corrupted . | . . . . . . Allies Melted . | . . . . . . Intel | -11 -10 -10 -10 -9 -8 ------- Run | Yrd Mat Min Exi Min Mat Active Infowar (turns) 3928 | 86 1048 318 798 818 860 Optics 413 | . . . . . 413 Sensors 1800 | . . 137 796 591 276 Structural 313 | . 7 . . . 306 Seismic 1935 | 86 1041 181 2 227 398 Robot Analysis Total . | . . . . . . Derelict Logs Recovered 1 | . . . . 1 . Drone Launches . | . . . . . . Drone Recoveries . | . . . . . . Exploration | -11 -10 -10 -10 -9 -8 ------------- Run | Yrd Mat Min Exi Min Mat Turns Passed 4746 | 304 1048 367 798 952 1277 Spaces Moved 2663 | 189 702 203 639 387 543 Core 16 | 11 . . . 1 4 Treads . | . . . . . . Legs 2293 | 178 702 203 317 354 539 Wheels . | . . . . . . Hover 354 | . . . 322 32 . Flight . | . . . . . . Fastest Speed 50 | 50 120 120 116 116 120 Average Speed 133 | 115 120 140 117 184 135 Slowest Speed 400 | 120 190 190 120 350 400 Overloaded Moves . | . . . . . . Propulsion Burnouts . | . . . . . . Robots Hopped . | . . . . . . Potential Cave-ins . | . . . . . . Cave-ins Triggered . | . . . . . . Exploration Rate (%) 56 | 9 98 40 94 57 42 Regions Visited 5 Branch Regions 3 Pre-discovered Areas 1 | . . . 1 . . Known Exits Taken 1 | . . . 1 . . Unknown Exits Taken 4 | 1 1 1 . 1 . Scrap Searched 1 | . . . . 1 . Spaces Dug 1 | . . . . . 1 Terrain Destroyed 63 | . 5 22 . 30 6 Melee 1 | . . . . . 1 Projectile . | . . . . . . AOE 62 | . 5 22 . 30 5 Terrain Rammed . | . . . . . . Walls Destroyed . | . . . . . . Machines Disabled . | . . . . . . Actions | -11 -10 -10 -10 -9 -8 --------- Run | Yrd Mat Min Exi Min Mat Total 3496 | 227 855 259 683 598 874 Wait 396 | 3 93 26 21 160 93 Move 2658 | 188 701 202 638 386 543 Hop . | . . . . . . Pick Up 36 | 6 10 1 2 3 14 Fast Attach 25 | 7 1 1 . 5 11 Attach 15 | . . . 2 . 13 Detach 3 | . 1 . . 1 1 Swap 90 | . 17 9 3 12 49 Drop 50 | 1 10 4 3 11 21 Fire 188 | 22 22 16 . 20 108 Melee 1 | . . . . . 1 Ram . | . . . . . . Kick 20 | . . . . . 20 Crush . | . . . . . . Escape Stasis . | . . . . . . Rewire 14 | . . . 14 . . Trap . | . . . . . . Miscellaneous . | . . . . . . Route ------- -11/Scrapyard -10/Materials (discovered 5 exits: *Mat x3 / *Min / [*Sub]) -10/Mines (discovered 2 exits: Mat / *Exi) -10/Exiles (discovered 2 exits: *Min x2) -9/Mines -8/Materials (discovered 1 exit: [*Fac]) History --------- Turn | Location | Event 11 | -11/Scrapyard | Discovered new exit (range 14) 305 | -11/Scrapyard | Entered Materials 306 | -10/Materials | Build established: Mutant 379 | -10/Materials | Discovered new exit (range 14) 598 | -10/Materials | Discovered new exit (range 16) 663 | -10/Materials | Discovered new exit (range 14) 785 | -10/Materials | Discovered new exit (range 7) 986 | -10/Materials | Learned Storage emergency access door positions 1050 | -10/Materials | Learned location of 2 exits from Subcaves 1089 | -10/Materials | Discovered new exit (range 9) 1106 | -10/Materials | Learned Storage garrison access intel 1247 | -10/Materials | Learned Storage trap positions 1290 | -10/Materials | Learned 2 Mines zone layouts 1344 | -10/Materials | Learned location of 1 exit from Storage 1353 | -10/Materials | Entered Mines 1353 | -10/Mines | Accompanied by 1 ally 1354 | -10/Mines | Identified exit to Materials 1530 | -10/Mines | Found a damaged Exp. Sensor Array with a note attached 1535 | -10/Mines | Found Prototype Device 1535 | -10/Mines | Identified Exp. Sensor Array 1608 | -10/Mines | Escorted by a lone wolf Derelict 1693 | -10/Mines | Deemed a non-threat by the Exiles lab entrance 1693 | -10/Mines | Discovered new exit (range 5) 1720 | -10/Mines | Entered Exiles 1720 | -10/Exiles | Found Exiles lab destroyed 1720 | -10/Exiles | Accompanied by 2 allies 1721 | -10/Exiles | Identified exit to Mines 1865 | -10/Exiles | Learned location of Zion (-7) 1931 | -10/Exiles | Opened EX-Vault 1954 | -10/Exiles | Found Trap Reconfigurator 2518 | -10/Exiles | Entered Mines 2518 | -9/Mines | Accompanied by 4 allies 2585 | -9/Mines | Lost 3 allies 2621 | -9/Mines | Learned Materials security intel 2685 | -9/Mines | Assembled infested the area 2690 | -9/Mines | Assisted by a Guerilla fighting off Assembled 2876 | -9/Mines | Build established: Scavenger-Mutant 3092 | -9/Mines | Core integrity fell below 50% 3336 | -9/Mines | Discovered new exit (range 13) 3470 | -9/Mines | Entered Materials 3470 | -8/Materials | Accompanied by 1 ally 3470 | -8/Materials | Evolved 4 slots: Propulsion x2, Utility x2 3877 | -8/Materials | Garrison activated, responded to threat 4180 | -8/Materials | Lost 5 parts (1p1n3u) 4223 | -8/Materials | Garrison activated, responded to threat 4296 | -8/Materials | Lost 4 parts (1n1u2w) 4310 | -8/Materials | Core integrity fell below 50% 4419 | -8/Materials | Core integrity fell below 20% 4419 | -8/Materials | Discovered new exit (range 9) 4672 | -8/Materials | Lost 3 parts (2n1w) 4747 | -8/Materials | Destroyed by G-47 Trooper with Particle Gun Last Messages --------------- 04687_ Triggered Explosive Trap. 04687_ An explosion rips through the floor. 04687_ Grenade Launcher destroyed. 04687_ Lgt. Armor Plating destroyed. 04687_ U-05 Engineer lays Concrete. 04695_ Acquired Shock Bomb Launcher. 04695_ U-05 Engineer lays Concrete. 04696_ U-05 Engineer builds a Wall. 04696_ U-05 Engineer lays Concrete. 04703_ Dropped Shock Bomb Launcher. 04704_ U-05 Engineer lays Concrete. 04705_ Dropped Shock Bomb Launcher. 04706_ U-05 Engineer lays Concrete. 04722_ W-25 Informer sends out distress signal. 04724_ U-05 Engineer lays Concrete. 04733_ U-05 Engineer completes Atomic Centrifuge. 04745_ Atomic Centrifuge comes online. 04745_ Lgt. Armor Plating destroyed. 04745_ U-05 Engineer destroyed. Map ----- +----------------------------------------------------+ | # """ # ##########?### # "* | | # # ##??????????## ##"" | | #/ """ # !##?????####### #### | | # """ # ##?????#######+#### | | # ["" # ##?????##= % ##?? | | # = # ##?????## """!##?? | | ##### ## ##?????## "G" ##?? | | ######## ##?????## " " ##?? | | ???##### *##?????##] ##?? | | ??????## ##?????## !=% ##?? | | ??????## ############+####?? | | ??????##= ## % [ #?? | | ??????######### < ! ### | | ??????? # * ! | | ??????????????############ ! | | ??????????????????????####! | | ?????????????????????????# ### | | ?????????????????????????# ##? | | ##########+#?????????????# ##? | | # ## #???########??# ##? | | # """ + #???# ?## ##? | | # """ ## #???# """ [# [ ## | | # """ ## #???# """"" # | | # ## ##### """"" + | | # """ # # """"" # | | # """ @ # """ # ## | | # """ # # ?### #### | | # # # ! ???# #### | | # """ !# # ????# #??? | | # """ # #######?####+#### | | # """ !# g #????#### | | # # =#########% " """ | | ######## *u| [#!* " """ | | ???????# ]=!! =! # "" """ | | ???????# ]!!u " *!%+% | | ???????#### """ # | | ??????????# !! """ # | | ??????????# # | | ??????????# ^ ^ ######### | | ??????????# ^ *#???????? | | ??????????# = [ #???????? | | ??????????# #???????? | | ??????????# #???????? | | ??????????# #???????? | | ??????????######### #???????? | | ??????????????????# #???????? | | ?????????????????? #???????? | | ?????????????????? #???????? | | ????????????????? +???????? | | ?????????????????" #???????? | +----------------------------------------------------+ Best States ------------- Heat Dissipation 39 Energy Generation 18 Energy Capacity 265 Matter Stores 300 Matter Capacity 300 Sight Range 20 Robot Scan Range 20 Terrain Scan Density 10 Armor Coverage 450 Evasion (%) 55 Targeting Accuracy 8 Offensive Hacking 11 Item Schematics ----------------- None Robot Schematics ------------------ None Fabricated ------------ Nothing Repaired ---------- Nothing Alien Tech Used ----------------- None Achievements -------------- None Challenges ------------ None Game ------ Seed PoweredChargeMegatreads Manual? 0 Play Time 00:47:01 Cumulative 105.1 hours Start 2025.07.30 @ 14:12:20 End 2025.07.30 @ 17:10:03 Sessions 3 Manual Loads 0 Difficulty Rogue Special Mode None Game No. 119 Rogue 119 Adventurer 0 Explorer 0 Win Type - Total 0 Types 0/0/0/0/0/0/0/0/0/0 Lore% 57 Gallery% 43 Achievement% 34 Wizard Run 0 Options --------- Layout 1 ASCII 0 Keyboard 0 Movement Mouse Keybinds 0 Fullscreen 2 Font 48/Smallcaps Map View 50x35 Zoom Use 0% Tactical HUD 1 Map Filters NONE Filters NONE Steam 0 RUN: 90ab3ad0-1897-42ce-b880-3b7535672a46